bitfinex-derivatives/quotes_BTCF0:USTF0_20260221
["timestamp","ask_amount","ask_price","bid_price","bid_amount"]
[1771663669734,0.21070858,68011.0,68003.0,0.029418]
[1771663669937,0.014707,68012.0,68004.0,0.014709]
[1771663670231,0.21070858,68011.0,68004.0,0.014709]
[1771663670429,0.014707,68012.0,68004.0,0.014709]
[1771663670630,0.21067436,68011.0,68004.0,0.014709]
[1771663670832,0.014707,68012.0,68004.0,0.014709]
[1771663671136,0.21067436,68011.0,68003.0,0.014709]
[1771663671429,0.014707,68012.0,68003.0,0.014709]
[1771663671732,0.21724672,68011.0,68003.0,0.014709]
[1771663671933,0.21724672,68010.0,68003.0,0.014709]
[1771663672132,0.014707,68012.0,68003.0,0.014709]
[1771663672431,0.21724672,68011.0,68003.0,0.014709]
[1771663672633,0.014707,68012.0,68003.0,0.014709]
[1771663672833,0.21722443,68011.0,68003.0,0.014709]
[1771663673132,0.014707,68012.0,68003.0,0.014709]
[1771663673331,0.21722443,68011.0,68003.0,0.014709]
[1771663673538,0.014707,68012.0,68004.0,0.014709]
[1771663673735,0.21720818,68011.0,68004.0,0.014709]
[1771663673929,0.014707,68013.0,68004.0,0.014709]
[1771663674137,0.21720825,68012.0,68004.0,0.014709]
[1771663674334,0.21720825,68011.0,68004.0,0.014709]
[1771663674635,0.014707,68013.0,68004.0,0.014709]
[1771663674836,0.21719708,68012.0,68004.0,0.014709]
[1771663675025,0.21719708,68011.0,68004.0,0.014709]
[1771663675230,0.014708,68009.0,67991.0,0.014712]
[1771663675429,0.217329,68008.0,67990.0,0.34501054]
[1771663675734,0.21720658,68007.0,67998.0,0.01471]
[1771663675925,0.00012242,68008.0,67998.0,0.01471]
[1771663676125,0.21718009,68007.0,67999.0,0.01471]
[1771663676325,0.21718009,68006.0,67999.0,0.01471]
[1771663676636,0.014708,68007.0,67998.0,0.01471]
[1771663676936,0.23186832,68006.0,67997.0,0.01471]
[1771663677131,0.014709,68006.0,67997.0,0.01471]
[1771663677331,0.014709,68006.0,67998.0,0.01471]
[1771663677524,0.014709,68005.0,67994.0,0.014711]
[1771663677724,0.014709,68005.0,67997.0,0.01471]
[1771663678230,0.014709,68005.0,67998.0,0.01471]
[1771663678438,0.21714029,68004.0,67997.0,0.01471]
[1771663678737,0.014709,68005.0,67997.0,0.01471]
[1771663679037,0.21714042,68004.0,67997.0,0.01471]
[1771663679238,0.014709,68005.0,67998.0,0.01471]
[1771663679436,0.2171354,68004.0,67998.0,0.01471]
[1771663679638,0.014709,68006.0,67998.0,0.01471]
[1771663679840,0.2171354,68005.0,67998.0,0.01471]
[1771663680027,0.2171354,68004.0,67998.0,0.01471]
[1771663680223,0.014709,68006.0,67998.0,0.01471]
[1771663680430,0.21714956,68005.0,67998.0,0.01471]
[1771663680726,0.21714956,68004.0,67998.0,0.01471]
[1771663680927,0.014709,68006.0,67998.0,0.01471]
[1771663681124,0.21715025,68005.0,67999.0,0.01471]
[1771663681334,0.21715025,68004.0,67999.0,0.01471]
[1771663681535,0.014709,68006.0,67999.0,0.01471]
[1771663681737,0.21713991,68005.0,67999.0,0.01471]
[1771663681941,0.21713991,68004.0,67999.0,0.01471]
[1771663682140,0.014708,68007.0,67999.0,0.02942]
[1771663682439,0.21713985,68006.0,67999.0,0.01471]
[1771663682637,0.21713985,68005.0,67999.0,0.01471]
[1771663682940,0.21713985,68004.0,67999.0,0.01471]
[1771663683240,0.014708,68007.0,67999.0,0.01471]
[1771663683435,0.21713527,68006.0,67999.0,0.01471]
[1771663683639,0.21713527,68005.0,67998.0,0.01471]
[1771663683831,0.21713527,68004.0,67998.0,0.01471]
[1771663684033,0.014708,68007.0,67997.0,0.01471]
[1771663684231,0.23184427,68006.0,67997.0,0.01471]
[1771663684432,0.23184427,68005.0,67997.0,0.01471]
[1771663684741,0.21713527,68004.0,67996.0,0.014711]
[1771663685443,0.23184427,68004.0,67996.0,0.014711]
[1771663685748,0.014709,68004.0,67996.0,0.014711]
[1771663688249,0.21720426,68003.0,67996.0,0.014711]
[1771663688436,0.014709,68004.0,67996.0,0.014711]
[1771663688740,0.21720624,68003.0,67996.0,0.014711]
[1771663688936,0.014709,68004.0,67996.0,0.014711]
[1771663689142,0.21720624,68003.0,67996.0,0.014711]
[1771663689344,0.41272859,68021.0,67993.0,0.59373633]
[1771663689646,0.014707,68011.0,68001.0,0.014709]
[1771663689838,0.21722416,68010.0,68001.0,0.014709]
[1771663690044,0.21722416,68009.0,68001.0,0.014709]
[1771663690247,0.21722416,68008.0,67997.0,0.01471]
[1771663690445,0.21722416,68007.0,67997.0,0.01471]
[1771663690648,0.21722416,68006.0,68001.0,0.014709]
[1771663690847,0.014708,68010.0,68001.0,0.029418]
[1771663691050,0.21726129,68009.0,68001.0,0.014709]
[1771663691345,0.21726129,68008.0,68001.0,0.014709]
[1771663691546,0.21726129,68007.0,68002.0,0.014709]
[1771663691753,0.21726129,68006.0,68002.0,0.014709]
[1771663692046,0.21726129,68005.0,68002.0,0.014709]
[1771663692246,0.014708,68010.0,68002.0,0.014709]
[1771663692247,0.21726129,68004.0,68002.0,0.014709]
[1771663692441,0.21726129,68003.0,68002.0,0.014709]
[1771663692834,0.21726129,68009.0,68002.0,0.014709]
[1771663693037,0.21726129,68008.0,68002.0,0.014709]
[1771663693247,0.21726129,68007.0,68003.0,0.014709]
[1771663693437,0.21726129,68006.0,68002.0,0.014709]
[1771663693637,0.21726129,68005.0,68003.0,0.014709]
[1771663693838,0.21726129,68004.0,68003.0,0.014709]
[1771663694039,0.21726129,68011.0,68003.0,0.014709]
[1771663694239,0.23196829,68011.0,68003.0,0.014709]
[1771663694442,0.21726129,68010.0,68003.0,0.014709]
[1771663694746,0.21726129,68009.0,68003.0,0.014709]
[1771663694948,0.21726129,68008.0,68003.0,0.014709]
[1771663695251,0.21726129,68007.0,68003.0,0.014709]
[1771663695449,0.21726129,68006.0,68003.0,0.014709]
[1771663695650,0.21726129,68005.0,68003.0,0.014709]
[1771663695955,0.21726129,68004.0,68003.0,0.014709]
[1771663699447,0.17286374,68004.0,68003.0,0.014709]
[1771663699651,0.014708,68010.0,68003.0,0.014709]
[1771663700153,0.014707,68012.0,68003.0,0.014709]
[1771663700348,0.014706,68017.0,68007.0,0.014708]
[1771663700756,0.014706,68016.0,68008.0,0.014708]
[1771663701054,0.014706,68016.0,68010.0,0.00092]
[1771663701252,0.014706,68018.0,68011.0,0.014707]
[1771663701856,0.014706,68018.0,68009.0,0.014708]
[1771663702041,0.014706,68018.0,68011.0,0.014707]
[1771663702444,0.014706,68018.0,68011.0,0.029414]
[1771663704853,0.014706,68017.0,68011.0,0.014707]
[1771663705455,0.014706,68017.0,68011.0,0.029414]
[1771663705645,0.014706,68018.0,68012.0,0.014707]
[1771663706251,0.014705,68021.0,68008.0,0.18008519]
[1771663707159,0.014705,68021.0,68015.0,0.014706]
[1771663708556,0.014705,68022.0,68016.0,0.014706]
[1771663708948,0.014705,68021.0,68016.0,0.014706]
[1771663709348,0.014705,68021.0,68013.0,0.014707]
[1771663709549,0.014705,68021.0,68016.0,0.014706]
[1771663709550,0.001,68021.0,68016.0,0.014706]
[1771663710253,0.014705,68023.0,68017.0,0.014706]
[1771663710454,0.014705,68021.0,68016.0,0.014706]
[1771663710845,0.014705,68021.0,68014.0,0.014707]
[1771663711051,0.014705,68021.0,68015.0,0.014706]
[1771663712253,0.014705,68021.0,68016.0,0.014706]
[1771663712853,0.014705,68022.0,68017.0,0.014706]
[1771663715263,0.014704,68029.0,68019.0,0.014706]
[1771663715560,0.014705,68024.0,68019.0,0.014706]
[1771663715762,0.21152228,68023.0,68019.0,0.014706]
[1771663715966,0.014705,68024.0,68018.0,0.014706]
[1771663716166,0.21152216,68023.0,68018.0,0.029412]
[1771663716360,0.014705,68024.0,68019.0,0.014706]
[1771663716563,0.22621235,68023.0,68018.0,0.014706]
[1771663716761,0.014705,68023.0,68018.0,0.014706]
[1771663717271,0.014705,68023.0,68017.0,0.014706]
[1771663717571,0.014705,68024.0,68018.0,0.014706]
[1771663717763,0.21149868,68023.0,68018.0,0.014706]
[1771663717963,0.014705,68023.0,68018.0,0.014706]
[1771663718163,0.014705,68023.0,68017.0,0.014706]
[1771663719275,0.014705,68023.0,68017.0,0.029412]
[1771663720476,0.014705,68023.0,68018.0,0.014706]
[1771663722378,0.2115024,68022.0,68018.0,0.014706]
[1771663722571,0.014705,68023.0,68018.0,0.014706]
[1771663722773,0.2115024,68022.0,68018.0,0.014706]
[1771663722973,0.014705,68023.0,68018.0,0.014706]
[1771663723172,0.2115024,68022.0,68018.0,0.014706]
[1771663723373,0.014705,68023.0,68017.0,0.014706]
[1771663723579,0.21151237,68022.0,68017.0,0.014706]
[1771663723778,0.014705,68023.0,68017.0,0.014706]
[1771663723978,0.21151237,68022.0,68017.0,0.014706]
[1771663724274,0.014705,68024.0,68018.0,0.014706]
[1771663724480,0.21152696,68023.0,68018.0,0.014706]
[1771663724681,0.21152696,68022.0,68018.0,0.014706]
[1771663724979,0.014705,68024.0,68018.0,0.014706]
[1771663725179,0.21152677,68023.0,68018.0,0.014706]
[1771663725380,0.21152677,68022.0,68018.0,0.014706]
[1771663725580,0.014705,68024.0,68018.0,0.014706]
[1771663725768,0.21154611,68023.0,68018.0,0.014706]
[1771663725973,0.21154611,68022.0,68018.0,0.014706]
[1771663726172,0.014705,68024.0,68018.0,0.014706]
[1771663726380,0.22625047,68023.0,68016.0,0.029412]
[1771663726680,0.21154547,68022.0,68016.0,0.014706]
[1771663727183,0.21154547,68022.0,68016.0,0.029412]
[1771663727585,0.21154547,68022.0,68017.0,0.014706]
[1771663727784,0.21154547,68022.0,68018.0,0.014706]
[1771663727984,0.014705,68024.0,68018.0,0.014706]
[1771663728278,0.21159923,68023.0,68018.0,0.014706]
[1771663728483,0.21159923,68022.0,68018.0,0.014706]
[1771663728782,0.014705,68024.0,68018.0,0.014706]
[1771663728983,0.21163581,68023.0,68018.0,0.014706]
[1771663729175,0.21163581,68022.0,68018.0,0.014706]
[1771663729374,0.21168101,68021.0,68018.0,0.014706]
[1771663729580,0.014705,68024.0,68018.0,0.014706]
[1771663729779,0.21168095,68023.0,68018.0,0.014706]
[1771663729980,0.21168095,68022.0,68018.0,0.014706]
[1771663730181,0.21168095,68021.0,68019.0,0.014706]
[1771663730382,0.014704,68025.0,68019.0,0.014706]
[1771663730588,0.21173625,68024.0,68019.0,0.014706]
[1771663730885,0.15384707,68023.0,68019.0,0.014706]
[1771663731087,0.014704,68025.0,68019.0,0.014706]
[1771663731480,0.014705,68024.0,68018.0,0.014706]
[1771663733591,0.014704,68026.0,68020.0,0.014705]
[1771663733789,0.014704,68025.0,68019.0,0.014706]
[1771663738192,0.014705,68024.0,68014.0,0.014707]
[1771663738792,0.014705,68024.0,68018.0,0.014706]
[1771663740297,0.014705,68024.0,68018.0,0.029412]
[1771663740599,0.014704,68026.0,68019.0,0.014706]
[1771663740800,0.014705,68025.0,68020.0,0.014705]
[1771663741498,0.014705,68025.0,68019.0,0.014706]
[1771663742198,0.014704,68026.0,68018.0,0.014706]
[1771663742390,0.014705,68025.0,68018.0,0.014706]
[1771663742793,0.22108936,68024.0,68018.0,0.014706]
[1771663742992,0.20638436,68023.0,68018.0,0.014706]
[1771663743802,0.20638436,68023.0,68019.0,0.014706]
[1771663744002,0.20638436,68022.0,68019.0,0.014706]
[1771663744302,0.20638436,68021.0,68019.0,0.014706]
[1771663744600,0.20638436,68020.0,68019.0,0.014706]
[1771663745009,0.1776061,68020.0,68019.0,0.014706]
[1771663745399,0.1776061,68020.0,68017.0,0.014706]
[1771663745591,0.014705,68022.0,68012.0,0.014707]
[1771663745797,0.014705,68022.0,68014.0,0.014707]
[1771663745999,0.014705,68022.0,68016.0,0.014706]
[1771663746203,0.014705,68023.0,68016.0,0.029412]
[1771663746803,0.014705,68023.0,68017.0,0.014706]
[1771663747306,0.02941,68025.0,68018.0,0.014706]
[1771663747497,0.014705,68025.0,68018.0,0.014706]
[1771663748104,0.02941,68025.0,68018.0,0.014706]
[1771663748407,0.014705,68024.0,68014.0,0.014707]
[1771663748603,0.014704,68025.0,68019.0,0.014706]
[1771663750406,0.029408,68027.0,68020.0,0.014705]
[1771663750807,0.014704,68026.0,68020.0,0.014705]
[1771663755409,0.014704,68025.0,68020.0,0.014705]
[1771663756209,0.014704,68028.0,68015.0,0.014706]
[1771663756403,0.014704,68028.0,68022.0,0.014705]
[1771663757110,0.22022994,68027.0,68023.0,0.014705]
[1771663757310,0.20552594,68026.0,68022.0,0.014705]
[1771663757504,0.20552623,68025.0,68022.0,0.014705]
[1771663757704,0.20552623,68024.0,68022.0,0.014705]
[1771663757905,0.20552623,68023.0,68022.0,0.014705]
[1771663758609,0.20552623,68023.0,68021.0,0.014705]
[1771663758910,0.20552623,68022.0,68021.0,0.014705]
[1771663759105,0.001,68023.0,68021.0,0.014705]
[1771663759305,0.20552623,68022.0,68020.0,0.014705]
[1771663760015,0.20552623,68021.0,68020.0,0.014705]
[1771663760404,0.20552623,68025.0,68020.0,0.014705]
[1771663760607,0.20552623,68024.0,68020.0,0.014705]
[1771663760916,0.20552623,68023.0,68020.0,0.014705]
[1771663761216,0.20552623,68022.0,68020.0,0.014705]
[1771663761406,0.014704,68027.0,68020.0,0.014705]
[1771663762614,0.014704,68027.0,68022.0,0.014705]
[1771663764620,0.015704,68027.0,68022.0,0.014705]
[1771663765018,0.015704,68027.0,68022.0,0.02941]
[1771663765318,0.015704,68027.0,68023.0,0.014705]
[1771663765522,0.015704,68027.0,68022.0,0.014705]
[1771663766717,0.015704,68027.0,68023.0,0.014705]
[1771663767414,0.014704,68027.0,68023.0,0.014705]
[1771663768320,0.014704,68026.0,68021.0,0.014705]
[1771663773327,0.20336459,68025.0,68021.0,0.014705]
[1771663773522,0.20336459,68024.0,68021.0,0.014705]
[1771663773723,0.20336459,68023.0,68021.0,0.014705]
[1771663773924,0.20336459,68022.0,68021.0,0.014705]
[1771663774327,0.20336459,68022.0,68020.0,0.014705]
[1771663774627,0.20336459,68021.0,68020.0,0.014705]
[1771663779730,0.014704,68029.0,68023.0,0.014705]
[1771663780130,0.014704,68028.0,68021.0,0.014705]
[1771663780329,0.014703,68031.0,68025.0,0.014704]
[1771663780527,0.014703,68031.0,68024.0,0.014705]
[1771663780528,0.014703,68030.0,68024.0,0.014705]
[1771663781633,0.014703,68030.0,68023.0,0.014705]
[1771663781824,0.014703,68030.0,68024.0,0.014704]
[1771663782224,0.014703,68030.0,68025.0,0.014704]
[1771663784732,0.014703,68031.0,68026.0,0.014704]
[1771663785632,0.014702,68036.0,68030.0,0.014703]
[1771663785831,0.014702,68035.0,68025.0,0.014704]
[1771663786133,0.014702,68034.0,68028.0,0.014704]
[1771663786332,0.014702,68035.0,68030.0,0.014703]
[1771663787032,0.014703,68034.0,68028.0,0.029408]
[1771663787227,0.014703,68034.0,68029.0,0.014703]
[1771663787422,0.014703,68033.0,68029.0,0.014703]
[1771663787627,0.014703,68033.0,68028.0,0.014704]
[1771663788229,0.014703,68032.0,68028.0,0.014704]
[1771663789135,0.014703,68033.0,68028.0,0.014704]
[1771663789336,0.014703,68033.0,68029.0,0.014703]
[1771663791239,0.029404,68035.0,68029.0,0.014703]
[1771663791437,0.014702,68034.0,68029.0,0.014703]
[1771663792128,0.014702,68034.0,68030.0,0.014703]
[1771663793539,0.014702,68036.0,68031.0,0.014703]
[1771663793843,0.014702,68035.0,68031.0,0.014703]
[1771663794033,0.014702,68035.0,68030.0,0.014703]
[1771663795335,0.014702,68036.0,68028.0,0.014704]
[1771663795336,0.014702,68034.0,68029.0,0.014704]
[1771663797242,0.014702,68037.0,68028.0,0.014704]
[1771663797435,0.014703,68033.0,68028.0,0.014704]
[1771663798236,0.014703,68033.0,68027.0,0.014704]
[1771663799148,0.014703,68032.0,68028.0,0.014704]
[1771663799342,0.014702,68035.0,68028.0,0.014704]
[1771663799554,0.014702,68035.0,68031.0,0.014703]
[1771663800135,0.014702,68036.0,68031.0,0.014703]
[1771663800340,0.029404,68035.0,68029.0,0.014704]
[1771663800534,0.014702,68035.0,68030.0,0.014703]
[1771663801547,0.014702,68035.0,68031.0,0.014703]
[1771663802145,0.014702,68034.0,68029.0,0.014704]
[1771663802339,0.014702,68034.0,68027.0,0.01323259]
[1771663802538,0.014702,68034.0,68024.0,0.014704]
[1771663803147,0.014703,68033.0,68028.0,0.014704]
[1771663803347,0.014703,68033.0,68029.0,0.014704]
[1771663804249,0.014702,68034.0,68029.0,0.014704]
[1771663805346,0.014702,68035.0,68030.0,0.014703]
[1771663809750,0.029404,68035.0,68030.0,0.014703]
[1771663810056,0.029404,68035.0,68029.0,0.014704]
[1771663811060,0.014702,68034.0,68030.0,0.014703]
[1771663811258,0.014702,68034.0,68029.0,0.014704]
[1771663814263,0.014703,68033.0,68029.0,0.014704]
[1771663816265,0.014702,68034.0,68029.0,0.014704]
[1771663817258,0.014702,68034.0,68029.0,0.029407]
[1771663817466,0.014702,68034.0,68029.0,0.014703]
[1771663818062,0.014702,68034.0,68029.0,0.029406]
[1771663820568,0.014702,68034.0,68030.0,0.014703]
[1771663821271,0.014702,68037.0,68029.0,0.014703]
[1771663821568,0.014702,68035.0,68029.0,0.029406]
[1771663821867,0.014703,68032.0,68027.0,0.014704]
[1771663825068,0.014703,68032.0,68027.0,0.029408]
[1771663827173,0.014703,68032.0,68028.0,0.014704]
[1771663827466,0.014702,68035.0,68030.0,0.014703]
[1771663827671,0.014702,68037.0,68031.0,0.014703]
[1771663828572,0.014702,68036.0,68031.0,0.014703]
[1771663828765,0.014702,68035.0,68031.0,0.014703]
[1771663828967,0.014702,68035.0,68030.0,0.014703]
[1771663831874,0.014702,68037.0,68031.0,0.014703]
[1771663832076,0.014702,68036.0,68031.0,0.014703]
[1771663832276,0.014702,68036.0,68030.0,0.014703]
[1771663832773,0.014702,68036.0,68030.0,0.029406]
[1771663832980,0.014702,68036.0,68030.0,0.014703]
[1771663833278,0.014702,68036.0,68031.0,0.014703]
[1771663833477,0.014702,68035.0,68031.0,0.014703]
[1771663835782,0.014702,68036.0,68031.0,0.014703]
[1771663835980,0.014702,68035.0,68030.0,0.014703]
[1771663839283,0.014702,68036.0,68031.0,0.014703]
[1771663841389,0.014702,68035.0,68030.0,0.014703]
[1771663842288,0.014703,68033.0,68022.0,0.014705]
[1771663842483,0.014703,68032.0,68022.0,0.014705]
[1771663842678,0.014703,68031.0,68025.0,0.014704]
[1771663842884,0.014703,68030.0,68024.0,0.014704]
[1771663843084,0.014703,68031.0,68024.0,0.014704]
[1771663843288,0.014702,68038.0,68020.0,0.1946252]
[1771663843987,0.029406,68033.0,68027.0,0.014704]
[1771663845088,0.014703,68032.0,68025.0,0.014704]
[1771663845390,0.014703,68032.0,68027.0,0.014704]
[1771663846689,0.014703,68032.0,68027.0,0.014174]
[1771663846887,0.014703,68032.0,68027.0,0.012674]
[1771663848193,0.014703,68032.0,68027.0,0.011774]
[1771663848594,0.014703,68032.0,68025.0,0.013684]
[1771663849091,0.014703,68032.0,68027.0,0.014704]
[1771663849793,0.014703,68032.0,68027.0,0.007144]
[1771663850896,0.014703,68032.0,68027.0,0.006624]
[1771663851691,0.20129545,68031.0,68027.0,0.006624]
[1771663851890,0.20129545,68030.0,68027.0,0.006624]
[1771663852091,0.20129545,68029.0,68027.0,0.006624]
[1771663852291,0.20129545,68028.0,68027.0,0.006624]
[1771663852597,0.1055893,68028.0,68027.0,0.006624]
[1771663852891,0.014703,68032.0,68025.0,0.012194]
[1771663853286,0.014703,68032.0,68026.0,0.014704]
[1771663854199,0.014702,68036.0,68030.0,0.014703]
[1771663854496,0.014702,68035.0,68030.0,0.014703]
[1771663854996,0.014702,68034.0,68029.0,0.014703]
[1771663855399,0.014702,68034.0,68029.0,0.013413]
[1771663855799,0.014702,68035.0,68029.0,0.013413]
[1771663856097,0.014702,68035.0,68029.0,0.012673]
[1771663856299,0.014702,68035.0,68029.0,0.010523]
[1771663856898,0.014702,68034.0,68029.0,0.009813]
[1771663859097,0.014702,68035.0,68029.0,0.009813]
[1771663859297,0.014702,68035.0,68030.0,0.014703]
[1771663859598,0.014702,68035.0,68030.0,0.013643]
[1771663859900,0.014702,68034.0,68029.0,0.014703]
[1771663860095,0.014702,68036.0,68030.0,0.014703]
[1771663860599,0.014702,68035.0,68030.0,0.014703]
[1771663860902,0.014702,68035.0,68030.0,0.013583]
[1771663862303,0.014702,68035.0,68028.0,0.014704]
[1771663862492,0.014702,68035.0,68029.0,0.014703]
[1771663863302,0.014702,68035.0,68030.0,0.014703]
[1771663863902,0.014702,68035.0,68030.0,0.013763]
[1771663864295,0.014702,68035.0,68030.0,0.013033]
[1771663865199,0.44107209,68049.0,68021.0,0.014705]
[1771663865200,0.014701,68042.0,68036.0,0.014702]
[1771663865404,0.014701,68041.0,68036.0,0.014702]
[1771663865806,0.014701,68042.0,68036.0,0.014702]
[1771663866101,0.20022834,68041.0,68036.0,0.029404]
[1771663866296,0.20022834,68040.0,68036.0,0.014702]
[1771663866500,0.20022834,68039.0,68036.0,0.014702]
[1771663866799,0.014701,68041.0,68036.0,0.014702]
[1771663867000,0.20016779,68040.0,68036.0,0.029404]
[1771663867201,0.20016779,68039.0,68036.0,0.029404]
[1771663867402,0.014701,68041.0,68036.0,0.029404]
[1771663867707,0.20012227,68040.0,68036.0,0.029404]
[1771663868006,0.014701,68042.0,68037.0,0.014702]
[1771663868208,0.20011703,68041.0,68037.0,0.014702]
[1771663868407,0.20011703,68040.0,68037.0,0.014702]
[1771663868602,0.014701,68042.0,68037.0,0.014702]
[1771663868807,0.20008548,68041.0,68037.0,0.014702]
[1771663869001,0.20008548,68040.0,68037.0,0.014702]
[1771663869199,0.014701,68041.0,68036.0,0.014702]
[1771663869406,0.20007952,68040.0,68036.0,0.014702]
[1771663869605,0.014701,68041.0,68036.0,0.014702]
[1771663869810,0.20005504,68040.0,68036.0,0.014702]
[1771663870108,0.014701,68041.0,68036.0,0.014702]
[1771663870311,0.20004855,68040.0,68036.0,0.014702]
[1771663870609,0.014701,68041.0,68036.0,0.014702]
[1771663870811,0.20002882,68040.0,68036.0,0.014702]
[1771663870999,0.014701,68041.0,68036.0,0.014702]
[1771663871905,0.20000635,68040.0,68036.0,0.014702]
[1771663872101,0.20000635,68039.0,68036.0,0.014702]
[1771663872301,0.014701,68041.0,68036.0,0.014702]
[1771663872302,0.20000635,68038.0,68036.0,0.014702]
[1771663872501,0.20000635,68037.0,68036.0,0.014702]
[1771663873513,0.35839119,68057.0,68033.0,0.014703]
[1771663873711,0.014701,68042.0,68037.0,0.014702]
[1771663874006,0.014701,68042.0,68038.0,0.014702]
[1771663874201,0.0147,68044.0,68039.0,0.014701]
[1771663874399,0.0294,68046.0,68041.0,0.014701]
[1771663874704,0.0147,68046.0,68041.0,0.014701]
[1771663874900,0.0147,68045.0,68041.0,0.014701]
[1771663875811,0.0147,68046.0,68041.0,0.014701]
[1771663879110,0.014701,68042.0,68036.0,0.014702]
[1771663880408,0.014701,68042.0,68037.0,0.014702]
[1771663881317,0.014701,68043.0,68038.0,0.014702]
[1771663884621,0.029402,68043.0,68038.0,0.014702]
[1771663885118,0.014701,68042.0,68038.0,0.014702]
[1771663887522,0.014701,68042.0,68037.0,0.014702]
[1771663890528,0.014701,68042.0,68038.0,0.014702]
[1771663890931,0.014701,68043.0,68038.0,0.014702]
[1771663891342,0.014701,68043.0,68038.0,0.029404]
[1771663891743,0.014701,68043.0,68039.0,0.014701]
[1771663893040,0.014701,68043.0,68037.0,0.00084]
[1771663893343,0.014701,68043.0,68034.0,0.014702]
[1771663893939,0.0147,68044.0,68037.0,0.014702]
[1771663894145,0.0147,68044.0,68039.0,0.014701]
[1771663899255,0.0147,68044.0,68037.0,0.029404]
[1771663900354,0.014701,68043.0,68037.0,0.029404]
[1771663901056,0.014701,68043.0,68037.0,0.014702]
[1771663901250,0.014701,68042.0,68037.0,0.014702]
[1771663901455,0.014701,68042.0,68028.0,0.38484733]
[1771663902156,0.014701,68042.0,68037.0,0.014702]
[1771663903659,0.014701,68042.0,68035.0,0.014702]
[1771663903859,0.014701,68040.0,68035.0,0.014702]
[1771663905253,0.014701,68041.0,68036.0,0.014702]
[1771663905458,0.014701,68040.0,68036.0,0.014702]
[1771663905662,0.014701,68042.0,68037.0,0.014702]
[1771663905861,0.014701,68040.0,68035.0,0.014702]
[1771663906058,0.014701,68040.0,68035.0,0.029404]
[1771663906453,0.014701,68040.0,68036.0,0.014702]
[1771663907064,0.014701,68041.0,68036.0,0.014702]
[1771663907360,0.20385099,68040.0,68036.0,0.014702]
[1771663907561,0.014701,68041.0,68036.0,0.014702]
[1771663907753,0.20384902,68040.0,68036.0,0.014702]
[1771663907953,0.014701,68041.0,68036.0,0.014702]
[1771663908159,0.20384902,68040.0,68034.0,0.014702]
[1771663908458,0.014701,68041.0,68036.0,0.014702]
[1771663908650,0.20384719,68040.0,68036.0,0.029404]
[1771663908844,0.014701,68041.0,68036.0,0.029404]
[1771663909045,0.20384719,68040.0,68036.0,0.014702]
[1771663909246,0.014701,68041.0,68036.0,0.014702]
[1771663909447,0.20384649,68040.0,68036.0,0.014702]
[1771663909651,0.014701,68041.0,68032.0,0.014703]
[1771663909861,0.20384593,68040.0,68032.0,0.014703]
[1771663910061,0.014701,68041.0,68034.0,0.014702]
[1771663910260,0.20384612,68040.0,68036.0,0.014702]
[1771663910451,0.014701,68041.0,68036.0,0.014702]
[1771663910650,0.20384419,68040.0,68034.0,0.014702]
[1771663910854,0.014701,68041.0,68034.0,0.014702]
[1771663911053,0.21854519,68040.0,68035.0,0.015542]
[1771663911361,0.014701,68040.0,68036.0,0.014702]
[1771663911756,0.21074679,68039.0,68034.0,0.014702]
[1771663911955,0.014701,68040.0,68034.0,0.014702]
[1771663912568,0.014701,68041.0,68036.0,0.014702]
[1771663912767,0.21074511,68040.0,68036.0,0.014702]
[1771663912967,0.014701,68041.0,68036.0,0.014702]
[1771663913170,0.21074531,68040.0,68032.0,0.014703]
[1771663913370,0.014701,68041.0,68036.0,0.014702]
[1771663913560,0.21074353,68040.0,68036.0,0.029404]
[1771663913756,0.014701,68041.0,68036.0,0.029404]
[1771663913964,0.21074347,68040.0,68036.0,0.029404]
[1771663914153,0.21074347,68039.0,68036.0,0.014702]
[1771663914357,0.21074347,68039.0,68021.0,0.37205561]
[1771663914358,0.014701,68042.0,68037.0,0.014702]
[1771663914553,0.21074188,68041.0,68035.0,0.014702]
[1771663914870,0.21074188,68040.0,68036.0,0.014702]
[1771663915058,0.21074188,68039.0,68033.0,0.014703]
[1771663915258,0.014701,68042.0,68037.0,0.014702]
[1771663915561,0.21074037,68041.0,68037.0,0.007232]
[1771663915768,0.21074037,68040.0,68037.0,0.007232]
[1771663915968,0.21074037,68039.0,68037.0,0.007232]
[1771663916260,0.014701,68041.0,68037.0,0.007232]
[1771663916466,0.21073901,68040.0,68037.0,0.007232]
[1771663916667,0.21073901,68039.0,68037.0,0.007232]
[1771663916869,0.014701,68042.0,68037.0,0.007232]
[1771663917067,0.21073901,68041.0,68037.0,0.007232]
[1771663917367,0.014701,68042.0,68037.0,0.007232]
[1771663917368,0.21073901,68040.0,68037.0,0.007232]
[1771663917577,0.21073901,68039.0,68037.0,0.007232]
[1771663917764,0.014701,68042.0,68037.0,0.007232]
[1771663917964,0.2107381,68041.0,68037.0,0.007232]
[1771663918165,0.2107381,68040.0,68037.0,0.007232]
[1771663918366,0.2107381,68039.0,68037.0,0.007232]
[1771663918567,0.014701,68042.0,68037.0,0.007232]
[1771663918768,0.2107371,68041.0,68037.0,0.007232]
[1771663918969,0.2107371,68040.0,68037.0,0.007232]
[1771663919268,0.2107371,68039.0,68037.0,0.007232]
[1771663919467,0.014701,68042.0,68037.0,0.007232]
[1771663919669,0.21073613,68041.0,68037.0,0.007232]
[1771663919873,0.21073613,68040.0,68037.0,0.007232]
[1771663920064,0.21073613,68039.0,68037.0,0.007232]
[1771663920263,0.014701,68042.0,68037.0,0.007232]
[1771663920464,0.21073487,68041.0,68037.0,0.007232]
[1771663920671,0.21073487,68040.0,68037.0,0.007232]
[1771663920873,0.21073487,68039.0,68037.0,0.007232]
[1771663921172,0.014701,68042.0,68037.0,0.007232]